bitfinex/quotes_BTCUSD_20251219
["timestamp","ask_amount","ask_price","bid_price","bid_amount"]
[1766136299974,0.537,88119.0,88102.0,0.01135048]
[1766136300357,0.537,88119.0,88109.0,0.01134957]
[1766136300920,0.537,88119.0,88110.0,0.01134944]
[1766136301136,0.31541,88119.0,88109.0,0.01134957]
[1766136301366,0.31541,88119.0,88108.0,0.23834132]
[1766136301367,0.01780519,88130.0,88119.0,0.001099]
[1766136301538,0.01780519,88130.0,88119.0,0.01244729]
[1766136301716,0.00568,88129.0,88119.0,0.01134829]
[1766136301915,0.00568,88129.0,88120.0,0.01134816]
[1766136302126,0.01780519,88130.0,88121.0,0.01134803]
[1766136302325,0.00568,88129.0,88117.0,0.01134854]
[1766136302534,0.00604415,88129.0,88116.0,0.05217194]
[1766136302738,0.00604415,88129.0,88117.0,0.01134854]
[1766136302938,0.00604415,88129.0,88119.0,0.01134829]
[1766136303139,0.00604415,88129.0,88118.0,0.01134841]
[1766136303346,0.00604415,88129.0,88119.0,0.01134829]
[1766136303521,0.00568,88128.0,88120.0,0.01134816]
[1766136303747,0.00568,88128.0,88119.0,0.01134829]
[1766136304075,4.15e-06,88129.0,88127.0,0.22694405]
[1766136304291,4.15e-06,88129.0,88128.0,0.00872]
[1766136304503,4.15e-06,88142.0,88135.0,0.01134623]
[1766136304707,0.00578918,88142.0,88137.0,0.01134597]
[1766136304930,0.00578918,88142.0,88135.0,0.01134623]
[1766136305129,0.00010918,88142.0,88134.0,0.00292]
[1766136305269,0.00010918,88142.0,88130.0,0.05217014]
[1766136306361,0.0025,88141.0,88131.0,0.01134674]
[1766136306567,0.0025,88141.0,88130.0,0.05217014]
[1766136306762,0.00010918,88142.0,88131.0,0.01134674]
[1766136307136,0.0025,88141.0,88131.0,0.01134674]
[1766136308853,0.0025,88139.0,88128.0,0.00568]
[1766136309053,0.0025,88139.0,88130.0,0.01134687]
[1766136309256,0.0025,88139.0,88131.0,0.01134674]
[1766136310712,0.0025,88140.0,88128.0,0.01702713]
[1766136310940,0.5231,88139.0,88128.0,0.00568]
[1766136311407,0.31828,88139.0,88128.0,0.00568]
[1766136311604,0.20732,88135.0,88128.0,0.00568]
[1766136311808,0.00568,88134.0,88122.0,0.0025]
[1766136312004,0.20482,88127.0,88122.0,0.0025]
[1766136312222,0.31828,88128.0,88122.0,0.0025]
[1766136312962,0.31828,88128.0,88122.0,0.0138479]
[1766136313159,0.31828,88128.0,88122.0,0.0025]
[1766136313662,0.31828,88128.0,88123.0,0.01134777]
[1766136313887,0.0025,88133.0,88124.0,0.01134764]
[1766136314730,0.0025,88133.0,88123.0,0.01134777]
[1766136314908,0.0025,88133.0,88120.0,0.0025]
[1766136315109,0.20732,88133.0,88120.0,0.0025]
[1766136315323,0.18793866,88133.0,88120.0,0.0025]
[1766136315526,0.00568,88134.0,88120.0,0.0025]
[1766136315527,0.01701992,88132.0,88120.0,0.0025]
[1766136315725,0.31828,88133.0,88120.0,0.0025]
[1766136315941,0.33529992,88132.0,88120.0,0.0025]
[1766136316143,0.31828,88132.0,88121.0,0.01134803]
[1766136316342,0.31828,88132.0,88123.0,0.01134777]
[1766136316532,0.00568,88134.0,88124.0,0.01134764]
[1766136316733,0.00568,88134.0,88125.0,0.01134751]
[1766136317172,0.00568,88134.0,88123.0,0.01134777]
[1766136317502,0.0025,88133.0,88125.0,0.01134751]
[1766136317700,0.0025,88133.0,88122.0,0.0025]
[1766136317906,0.0025,88133.0,88124.0,0.01134764]
[1766136318187,0.0025,88133.0,88123.0,0.01134777]
[1766136318345,0.0025,88133.0,88122.0,0.0138479]
[1766136318549,0.0025,88133.0,88123.0,0.01134777]
[1766136318728,0.0025,88133.0,88124.0,0.01134764]
[1766136318931,0.0025,88135.0,88128.0,0.01134713]
[1766136319136,0.00568,88138.0,88131.0,0.01134674]
[1766136319593,0.00568,88138.0,88129.0,0.23828705]
[1766136319594,0.00010918,88142.0,88129.0,0.00568]
[1766136319780,0.00010918,88142.0,88134.0,0.01134635]
[1766136319987,0.00010918,88142.0,88133.0,0.01206]
[1766136320239,0.54022717,88142.0,88129.0,0.00568]
[1766136320433,0.001099,88133.0,88129.0,0.017027]
[1766136320637,0.52320918,88142.0,88129.0,0.017027]
[1766136320843,0.52320918,88142.0,88130.0,0.01134687]
[1766136321074,0.0025,88141.0,88130.0,0.01134687]
[1766136321248,0.0025,88141.0,88132.0,0.01134661]
[1766136321404,0.0025,88141.0,88131.0,0.01134674]
[1766136322264,0.0025,88141.0,88130.0,0.01134687]
[1766136322464,0.0025,88141.0,88131.0,0.02210674]
[1766136322645,0.0025,88141.0,88131.0,0.01076]
[1766136322999,0.0025,88141.0,88129.0,0.017027]
[1766136323227,0.0025,88141.0,88130.0,0.01134687]
[1766136325182,0.0025,88141.0,88129.0,0.017027]
[1766136325389,0.0025,88141.0,88129.0,0.00568]
[1766136325589,0.0025,88141.0,88132.0,0.01134661]
[1766136325938,0.0025,88141.0,88134.0,0.01134635]
[1766136326625,0.0025,88141.0,88135.0,0.01134623]
[1766136327394,0.0025,88141.0,88136.0,0.0113461]
[1766136327807,0.0025,88141.0,88135.0,0.01134623]
[1766136328013,0.0025,88141.0,88134.0,0.01134635]
[1766136329145,0.0025,88141.0,88135.0,0.01134623]
[1766136329309,0.0025,88141.0,88133.0,0.01134648]
[1766136329718,0.0025,88141.0,88135.0,0.01134623]
[1766136329923,0.00010918,88142.0,88135.0,0.01134623]
[1766136330122,0.00010918,88142.0,88136.0,0.0113461]
[1766136330855,0.00010918,88142.0,88135.0,0.01134623]
[1766136331743,0.00010918,88142.0,88136.0,0.0113461]
[1766136331949,0.0025,88141.0,88136.0,0.0113461]
[1766136332288,0.00578918,88142.0,88137.0,0.01134597]
[1766136332491,0.00578918,88142.0,88138.0,0.01134584]
[1766136332720,0.00010918,88142.0,88139.0,0.01134571]
[1766136332928,0.00578918,88142.0,88138.0,0.01134584]
[1766136333113,0.00010918,88142.0,88138.0,0.01134584]
[1766136333278,0.00578918,88142.0,88137.0,0.01134597]
[1766136333469,0.00578918,88142.0,88138.0,0.01134584]
[1766136333660,0.00578918,88142.0,88137.0,0.01134597]
[1766136334205,0.00010918,88142.0,88138.0,0.01134584]
[1766136334416,0.00010918,88142.0,88137.0,0.01134597]
[1766136334618,0.00010918,88142.0,88138.0,0.01134584]
[1766136335122,0.00010918,88142.0,88139.0,0.01134571]
[1766136335703,0.00010918,88142.0,88137.0,0.2382636]
[1766136335865,0.00010918,88142.0,88138.0,0.01134584]
[1766136336078,0.0025,88137.0,88131.0,0.05217001]
[1766136336327,0.0025,88137.0,88121.0,0.01134803]
[1766136336328,0.51005,88136.0,88121.0,0.01134803]
[1766136336543,0.1923,88135.0,88124.0,0.01134764]
[1766136336748,0.51005,88133.0,88126.0,0.00568]
[1766136336969,0.1923,88131.0,88126.0,0.00568]
[1766136337319,0.001099,88126.0,88120.0,0.0025]
[1766136337524,0.001099,88126.0,88113.0,1e-08]
[1766136337525,0.31775,88123.0,88113.0,1e-08]
[1766136337706,0.0025,88121.0,88099.0,0.01135086]
[1766136338085,0.0025,88119.0,88102.0,0.04082327]
[1766136338224,0.0025,88119.0,88103.0,0.0025]
[1766136338560,0.1948,88116.0,88103.0,0.0025]
[1766136338780,0.51005,88113.0,88103.0,0.0025]
[1766136339071,0.51005,88113.0,88102.0,0.04082327]
[1766136339279,0.51005,88113.0,88099.0,0.01135086]
[1766136339479,0.51005,88113.0,88101.0,0.04332327]
[1766136339675,0.1923,88110.0,88101.0,0.0025]
[1766136340047,0.1923,88110.0,88101.0,0.00286415]
[1766136341468,0.1923,88110.0,88103.0,0.0025]
[1766136341673,0.31775,88111.0,88103.0,0.01135035]
[1766136341870,0.0025,88114.0,88107.0,0.01134983]
[1766136342524,0.0025,88114.0,88105.0,0.01135009]
[1766136342738,0.0025,88114.0,88106.0,0.01134996]
[1766136343421,0.0025,88114.0,88107.0,0.01134983]
[1766136343950,0.0025,88114.0,88106.0,0.01134996]
[1766136344100,0.0025,88114.0,88107.0,0.01134983]
[1766136344749,0.0025,88114.0,88105.0,0.01135009]
[1766136344906,0.0025,88114.0,88107.0,0.01134983]
[1766136345111,0.0025,88114.0,88106.0,0.01134996]
[1766136345627,0.0025,88114.0,88107.0,0.01134983]
[1766136346069,0.0025,88114.0,88106.0,0.01134996]
[1766136346695,0.0025,88114.0,88103.0,0.04082327]
[1766136346902,0.0025,88105.0,88101.0,0.00036415]
[1766136347199,0.32025,88102.0,88101.0,4.15e-06]
[1766136347380,0.51255,88102.0,88101.0,4.15e-06]
[1766136351484,0.51255,88102.0,88090.0,0.01135202]
[1766136351485,0.0025,88101.0,88090.0,0.01135202]
[1766136351719,0.0025,88099.0,88091.0,0.01135189]
[1766136352506,0.0025,88099.0,88090.0,0.00010927]
[1766136353337,0.0025,88097.0,88090.0,0.00010927]
[1766136354224,0.0025,88097.0,88090.0,0.01146129]
[1766136354951,0.0025,88097.0,88091.0,0.01135189]
[1766136355360,0.0025,88097.0,88090.0,0.00010927]
[1766136355771,0.0025,88097.0,88090.0,0.01146129]
[1766136356707,0.0025,88097.0,88091.0,0.01135189]
[1766136357279,0.0025,88097.0,88090.0,0.00010927]
[1766136362424,0.0025,88097.0,88088.0,0.01703228]
[1766136362425,0.16143072,88090.0,88088.0,0.01703228]
[1766136362595,0.16150094,88090.0,88088.0,0.01703228]
[1766136364189,0.16150094,88090.0,88088.0,0.24407597]
[1766136364385,9.4e-07,88090.0,88088.0,0.24407597]
[1766136364591,0.18211,88123.0,88103.0,0.01135035]
[1766136364800,0.18211,88123.0,88100.0,0.01135073]
[1766136364801,0.31073,88121.0,88100.0,0.01135073]
[1766136365001,0.00568,88122.0,88101.0,0.04082327]
[1766136365616,0.31073,88121.0,88101.0,0.04082327]
[1766136365846,0.31073,88117.0,88101.0,0.04082327]
[1766136366065,0.18779,88116.0,88101.0,0.04082327]
[1766136366722,0.0125,88115.0,88101.0,0.04082327]
[1766136368185,0.0025,88115.0,88104.0,0.01135022]
[1766136368388,0.0025,88115.0,88101.0,0.05217387]
[1766136368389,0.0125,88113.0,88102.0,0.01135048]
[1766136368586,0.0125,88113.0,88104.0,0.01135022]
[1766136369202,0.0125,88113.0,88105.0,0.01135009]
[1766136369409,0.0125,88111.0,88100.0,0.00568]
[1766136369604,0.18461,88110.0,88101.0,0.04082327]
[1766136369822,0.0025,88108.0,88101.0,0.04082327]
[1766136370029,0.0025,88108.0,88103.0,0.01135035]
[1766136370428,0.0025,88108.0,88104.0,0.01135022]
[1766136370735,0.0025,88111.0,88104.0,0.01135022]
[1766136370896,0.0025,88111.0,88103.0,0.01135035]
[1766136371094,0.0025,88111.0,88102.0,0.01135048]
[1766136371311,0.0025,88111.0,88101.0,0.03482327]
[1766136371312,0.49534,88111.0,88101.0,0.03482327]
[1766136372137,0.49534,88111.0,88101.0,0.04617387]
[1766136372342,0.49534,88111.0,88101.0,0.03482327]
[1766136372550,0.31323,88111.0,88102.0,0.01135048]
[1766136372891,0.00036417,88123.0,88109.0,0.01134957]
[1766136373093,4.17e-06,88123.0,88118.0,0.01134841]
[1766136373357,0.00568,88122.0,88117.0,0.01134854]
[1766136373562,0.00568,88122.0,88115.0,0.05217207]
[1766136373563,3.71e-06,88122.0,88115.0,0.04082327]
[1766136375080,3.71e-06,88122.0,88115.0,0.05217207]
[1766136375290,0.01,88134.0,88116.0,0.01134867]
[1766136375491,0.01,88134.0,88115.0,0.05217207]
[1766136375492,0.01,88132.0,88115.0,0.04082327]
[1766136375819,0.01,88130.0,88116.0,0.01134867]
[1766136376024,0.01,88128.0,88115.0,0.04082327]
[1766136376234,0.01702089,88127.0,88114.0,0.00568]
[1766136376440,0.49284,88126.0,88114.0,0.00568]
[1766136376644,0.31073,88124.0,88114.0,0.00568]
[1766136376823,0.49284,88124.0,88114.0,0.00568]
[1766136376974,0.01,88132.0,88114.0,0.00568]
[1766136377173,0.01,88128.0,88114.0,0.00568]
[1766136377381,0.0025,88125.0,88114.0,0.00568]
[1766136377586,0.0025,88122.0,88102.0,0.0025]
[1766136377789,0.0025,88118.0,88104.0,0.0025]
[1766136377989,0.0025,88116.0,88105.0,0.01135009]
[1766136378190,0.0025,88118.0,88107.0,0.01134983]
[1766136378429,0.0025,88118.0,88108.0,0.0113497]
[1766136378605,0.0025,88118.0,88109.0,0.01134957]
[1766136378828,0.18461,88118.0,88108.0,0.0113497]
[1766136378994,0.49534,88118.0,88109.0,0.01134957]
[1766136379197,0.49534,88118.0,88107.0,0.01134983]
[1766136379456,0.0025,88118.0,88106.0,0.01134996]
[1766136379606,0.0025,88118.0,88102.0,0.22737151]
[1766136379607,0.18211,88117.0,88103.0,0.00568]
[1766136379944,0.49284,88108.0,88103.0,0.00568]
[1766136380148,0.49284,88108.0,88102.0,0.00604417]
[1766136380371,0.18211,88111.0,88102.0,4.17e-06]
[1766136380509,0.00568,88114.0,88097.0,0.01135112]
[1766136380510,0.0025,88109.0,88097.0,0.01135112]
[1766136380708,0.18461,88105.0,88097.0,0.01135112]
[1766136380951,0.18461,88105.0,88098.0,0.01135099]
[1766136381163,0.18461,88105.0,88099.0,0.01135086]
[1766136381360,0.49284,88102.0,88096.0,0.01135125]
[1766136381573,0.49284,88102.0,88098.0,0.01135099]
[1766136381819,0.491741,88102.0,88098.0,0.01135099]
[1766136382599,0.491741,88102.0,88099.0,0.01135086]
[1766136382774,0.491741,88102.0,88098.0,0.01135099]
[1766136382976,0.491741,88102.0,88099.0,0.01135086]
[1766136383179,0.491741,88102.0,88095.0,0.01135138]
[1766136383382,0.491741,88102.0,88097.0,0.01135112]
[1766136383770,0.309631,88102.0,88098.0,0.01135099]
[1766136383972,3.91e-06,88109.0,88104.0,0.01135022]
[1766136384177,0.00568,88107.0,88101.0,1e-08]
[1766136384387,3.91e-06,88109.0,88102.0,0.01135048]
[1766136384924,3.91e-06,88109.0,88101.0,1e-08]
[1766136386001,0.0025,88108.0,88101.0,1e-08]
[1766136386445,0.0025,88108.0,88102.0,0.01135048]
[1766136387306,0.0025,88108.0,88101.0,1e-08]
[1766136399275,0.0025,88108.0,88101.0,0.01135061]
[1766136399441,0.0025,88108.0,88101.0,1e-08]
[1766136400042,0.0025,88108.0,88102.0,0.01135048]
[1766136400293,0.0025,88108.0,88101.0,1e-08]
[1766136406415,0.18882,88108.0,88101.0,1e-08]
[1766136407002,0.0025,88108.0,88101.0,1e-08]
[1766136407223,0.0025,88108.0,88101.0,0.01135061]
[1766136407404,0.0025,88108.0,88101.0,1e-08]
[1766136409762,0.18882,88108.0,88101.0,1e-08]
[1766136411053,0.33681,88108.0,88101.0,1e-08]
[1766136411214,0.33681,88108.0,88098.0,0.00568]
[1766136412300,0.0025,88108.0,88098.0,0.00568]
[1766136419100,0.0025,88106.0,88098.0,0.00568]
[1766136419279,0.52313,88106.0,88098.0,0.00568]
[1766136419520,3.91e-06,88109.0,88102.0,0.01135048]
[1766136419666,3.91e-06,88109.0,88104.0,0.01135022]
[1766136419865,3.91e-06,88109.0,88107.0,0.22699451]
[1766136420758,3.91e-06,88109.0,88106.0,0.23834925]
[1766136421177,3.91e-06,88109.0,88106.0,0.0025]
[1766136423014,3.91e-06,88109.0,88105.0,0.00568]
[1766136423218,3.91e-06,88109.0,88101.0,0.04082327]
[1766136423219,3.91e-06,88109.0,88102.0,0.01135048]
[1766136423426,3.91e-06,88109.0,88102.0,0.04082327]
[1766136424197,0.3259,88108.0,88102.0,0.04082327]
[1766136424395,3.91e-06,88109.0,88102.0,0.05217375]
[1766136424943,3.91e-06,88109.0,88104.0,0.01135022]
[1766136425236,3.91e-06,88109.0,88105.0,0.0025]
[1766136426477,3.91e-06,88109.0,88104.0,0.0025]
[1766136426821,3.91e-06,88109.0,88104.0,0.01385022]
[1766136427042,3.91e-06,88109.0,88104.0,0.0025]
[1766136431428,3.91e-06,88109.0,88104.0,0.01385022]
[1766136431576,3.91e-06,88109.0,88104.0,0.0025]
[1766136432401,3.91e-06,88109.0,88106.0,0.01134996]
[1766136435385,3.91e-06,88109.0,88105.0,0.01703009]
[1766136435750,3.91e-06,88109.0,88105.0,0.00568]
[1766136436416,3.91e-06,88109.0,88105.0,0.004581]
[1766136436972,0.32590391,88109.0,88105.0,1e-06]
[1766136437175,0.3259,88102.0,88090.0,0.23839141]
[1766136437401,0.17858,88099.0,88091.0,0.01703189]
[1766136437556,0.17858,88099.0,88091.0,0.00568]
[1766136438258,0.17858,88099.0,88091.0,0.01703189]
[1766136438938,0.17858,88099.0,88091.0,0.00568]
[1766136439298,0.0025,88108.0,88092.0,0.0025]
[1766136439480,0.01952456,88108.0,88092.0,0.0025]
[1766136439919,0.01952456,88108.0,88097.0,0.01135112]
[1766136440121,0.50448,88107.0,88094.0,0.01135151]
[1766136440620,3.91e-06,88109.0,88092.0,0.0025]
[1766136440822,0.50698,88102.0,88092.0,0.0025]
[1766136441041,0.17858,88101.0,88092.0,0.0025]
[1766136441439,0.17858,88099.0,88093.0,0.01135163]
[1766136441782,0.3259,88100.0,88094.0,0.01135151]
[1766136442099,0.0025,88102.0,88094.0,0.01135151]
[1766136442435,0.0025,88102.0,88095.0,0.01135138]
[1766136442870,0.0025,88102.0,88094.0,0.01135151]
[1766136443069,0.00568,88107.0,88102.0,0.01244948]
[1766136443236,3.91e-06,88109.0,88104.0,0.01135022]
[1766136443439,3.91e-06,88109.0,88107.0,0.2269944]
[1766136444100,3.91e-06,88109.0,88107.0,0.2326744]
[1766136445021,0.0025,88108.0,88107.0,0.2326744]
[1766136445160,0.001442,88108.0,88107.0,0.2326744]
[1766136446283,0.001442,88108.0,88107.0,0.2414344]
[1766136446693,0.3259,88120.0,88112.0,0.01134919]
[1766136446891,0.3259,88120.0,88112.0,5.371e-05]
[1766136447061,0.18426,88121.0,88112.0,5.371e-05]
[1766136447457,0.3259,88120.0,88112.0,5.371e-05]
[1766136448179,0.50448,88119.0,88112.0,5.371e-05]
[1766136448395,0.00568,88121.0,88112.0,5.371e-05]
[1766136448712,0.01134738,88126.0,88112.0,5.371e-05]
[1766136448713,0.0125,88126.0,88112.0,5.371e-05]
[1766136448922,0.0125,88121.0,88112.0,5.371e-05]
[1766136449074,0.0025,88117.0,88112.0,5.371e-05]
[1766136452854,0.0025,88118.0,88112.0,0.0114029]
[1766136453062,0.0025,88118.0,88115.0,0.0113488]
[1766136453209,0.0291539,88130.0,88115.0,0.0113488]
[1766136453210,0.03051219,88147.0,88129.0,0.00579]
[1766136453445,0.0407344,88153.0,88129.0,0.00579]
[1766136453446,0.0341017,88145.0,88134.0,0.00535]
[1766136453611,0.0341017,88145.0,88139.0,0.01134571]
[1766136453810,0.0025,88144.0,88139.0,0.01134571]
[1766136454110,0.0025,88144.0,88136.0,0.22691997]
[1766136454309,0.0025,88144.0,88137.0,0.01134597]
[1766136454729,0.0025,88144.0,88136.0,0.0113461]
[1766136454730,0.0025,88144.0,88138.0,0.01134584]
[1766136454962,0.0025,88146.0,88136.0,0.0113461]
[1766136455139,0.0025,88146.0,88138.0,0.01134584]
[1766136455359,0.0025,88146.0,88136.0,0.0113461]
[1766136455515,0.0025,88146.0,88138.0,0.01134584]
[1766136455916,0.0025,88146.0,88139.0,0.01134571]
[1766136456232,0.0025,88146.0,88141.0,0.01134545]
[1766136456428,0.3259,88153.0,88143.0,0.0113452]
[1766136456637,9.914e-05,88153.0,88151.0,0.22688341]
[1766136456824,0.33572,88161.0,88153.0,0.01134391]
[1766136457042,0.0025,88160.0,88146.0,0.05216808]
[1766136457242,0.33572,88161.0,88148.0,0.01134455]
[1766136457651,0.00608,88163.0,88146.0,0.05216808]
[1766136457652,0.5184,88159.0,88146.0,0.05216808]
[1766136457906,0.0025,88158.0,88146.0,0.04082327]
[1766136458267,0.18518,88158.0,88146.0,0.04082327]
[1766136458465,0.00608,88163.0,88146.0,0.04082327]
[1766136458466,0.18518,88156.0,88146.0,0.04082327]
[1766136458856,0.5209,88156.0,88146.0,0.04082327]
[1766136459588,0.0025,88154.0,88142.0,0.01134532]
[1766136459758,0.00257843,88154.0,88144.0,0.01134507]
[1766136459954,0.00257843,88154.0,88146.0,0.01134481]
[1766136460371,0.00257843,88154.0,88145.0,0.01134494]
[1766136460570,0.00257843,88154.0,88147.0,0.01134468]
[1766136460990,0.00257843,88154.0,88146.0,0.01134481]
[1766136461198,0.00257843,88154.0,88145.0,0.01134494]
[1766136461575,0.00257843,88154.0,88144.0,0.01134507]
[1766136461877,0.00257843,88154.0,88143.0,0.0113452]
[1766136462080,0.00257843,88154.0,88144.0,0.01134507]
[1766136462282,0.00257843,88154.0,88145.0,0.01134494]
[1766136462486,0.00257843,88154.0,88146.0,0.01134481]
[1766136462810,0.00257843,88154.0,88147.0,0.01134468]
[1766136463015,0.00257843,88154.0,88148.0,0.01134455]
[1766136463314,0.00257843,88154.0,88145.0,0.01134494]
[1766136463618,0.00257843,88154.0,88146.0,0.04082327]
[1766136463822,0.00257843,88154.0,88147.0,0.00568]
[1766136466984,0.52097843,88154.0,88147.0,0.00568]
[1766136467475,0.01701587,88153.0,88136.0,0.0113461]
[1766136467636,0.18268,88145.0,88137.0,0.00818]
[1766136467787,0.5184,88145.0,88139.0,0.0025]
[1766136468552,0.5184,88145.0,88139.0,0.01384571]
[1766136468723,0.5184,88145.0,88140.0,0.01384558]
[1766136468918,0.5184,88145.0,88140.0,0.0025]
[1766136469140,0.5184,88145.0,88140.0,0.01384558]
[1766136469323,0.5184,88145.0,88141.0,0.01134545]
[1766136469537,0.33572,88145.0,88141.0,0.01134545]
[1766136470572,0.33572,88145.0,88140.0,0.01384558]
[1766136471328,0.33572,88145.0,88141.0,0.01134545]
[1766136471558,0.33572,88145.0,88140.0,0.01384558]
[1766136471726,0.33572,88145.0,88140.0,0.0025]
[1766136472160,0.33572,88145.0,88140.0,0.01384558]
[1766136472775,0.33572,88145.0,88140.0,0.0025]
[1766136473291,0.001099,88140.0,88137.0,0.01702597]
[1766136473492,0.18268,88143.0,88139.0,0.01134571]
[1766136473851,0.18268,88143.0,88138.0,0.01134584]
[1766136474283,0.18268,88143.0,88139.0,0.01134571]
[1766136474483,0.18268,88143.0,88138.0,0.01134584]
[1766136475198,0.18268,88143.0,88139.0,0.0025]
[1766136475577,0.33572,88144.0,88139.0,0.0025]
[1766136475578,0.33572,88144.0,88141.0,0.0025]
[1766136477847,0.33572,88144.0,88140.0,0.0025]
[1766136478280,0.33572,88144.0,88140.0,0.01384558]
[1766136479749,0.00568,88150.0,88140.0,0.01384558]
[1766136479965,0.18268,88147.0,88140.0,0.0025]
[1766136480148,0.5184,88147.0,88140.0,0.0025]
[1766136480533,0.18268,88146.0,88140.0,0.0025]
[1766136480887,0.18268,88146.0,88140.0,0.900371]
[1766136481032,0.18268,88145.0,88140.0,0.900371]
[1766136482073,7.843e-05,88154.0,88140.0,0.900371]
[1766136482074,7.843e-05,88154.0,88148.0,0.01134455]
[1766136482261,7.843e-05,88154.0,88151.0,0.01134417]
[1766136482476,0.0004,88163.0,88153.0,0.01134391]
[1766136482477,0.00568,88161.0,88153.0,0.01134391]
[1766136482678,0.00568,88161.0,88152.0,0.01134404]
[1766136482838,0.00568,88161.0,88150.0,0.01134429]
[1766136483039,0.00568,88161.0,88152.0,0.01134404]
[1766136483295,0.00568,88161.0,88151.0,0.01134417]
[1766136483496,0.00568,88161.0,88152.0,0.01134404]
[1766136484003,0.00568,88161.0,88153.0,0.01134391]
[1766136484204,0.0025,88160.0,88153.0,0.01134391]
[1766136484364,0.0025,88160.0,88154.0,0.01134378]
[1766136484568,0.0025,88160.0,88153.0,0.01134391]
[1766136484771,0.0025,88160.0,88151.0,0.01134417]
[1766136484965,0.0025,88157.0,88149.0,0.05216769]
[1766136485166,0.18136,88156.0,88149.0,0.04082327]
[1766136486302,0.0025,88155.0,88149.0,0.05216769]
[1766136486457,0.0025,88155.0,88150.0,0.01134429]
[1766136486658,0.0025,88155.0,88149.0,0.05216769]
[1766136487069,0.0025,88155.0,88149.0,0.04082327]
[1766136487275,0.0025,88155.0,88149.0,0.05216769]
[1766136487473,0.0025,88155.0,88150.0,0.01134429]
[1766136487688,0.0025,88155.0,88149.0,0.05216769]
[1766136488089,0.0025,88155.0,88150.0,0.01134429]
[1766136488309,0.0025,88155.0,88147.0,0.00568]
[1766136488507,0.0025,88153.0,88147.0,0.00568]
[1766136488725,0.18386,88153.0,88147.0,0.00568]
[1766136490391,0.182761,88153.0,88147.0,0.00568]
[1766136490605,0.182761,88153.0,88147.0,0.01702468]
[1766136490813,0.182761,88153.0,88148.0,0.01134455]
[1766136491009,0.001401,88153.0,88147.0,0.01702468]
[1766136491227,0.001401,88153.0,88148.0,0.01134455]
[1766136491388,0.001401,88153.0,88147.0,0.00568]
[1766136493778,0.52098,88152.0,88147.0,0.004581]
[1766136493999,0.18386,88151.0,88147.0,0.004581]
[1766136494199,0.0025,88151.0,88147.0,0.004581]
[1766136495583,0.0025,88151.0,88148.0,0.22689113]
[1766136495783,0.22679922,88184.0,88148.0,0.22689113]
[1766136495784,3.21e-06,88191.0,88190.0,0.22421319]
[1766136495987,0.02452744,88215.0,88193.0,0.0025]
[1766136496190,0.00355083,88210.0,88201.0,0.04082327]
[1766136496391,0.00076403,88211.0,88202.0,0.01701761]
[1766136496718,0.00076403,88211.0,88204.0,0.01133735]
[1766136497041,0.00076403,88211.0,88203.0,0.00568]
[1766136497626,0.00076403,88211.0,88203.0,0.01701748]
[1766136497827,0.0025,88210.0,88203.0,0.01701748]
[1766136498009,0.0025,88210.0,88205.0,0.01133722]
[1766136498214,0.00076403,88211.0,88208.0,0.01133684]
[1766136498640,0.0025,88210.0,88208.0,0.01133684]
[1766136499301,0.0025,88210.0,88207.0,0.01133696]
[1766136499939,0.0025,88210.0,88205.0,0.01133722]
[1766136500143,0.0025,88210.0,88207.0,0.01133696]
[1766136501154,0.001401,88210.0,88207.0,0.23807499]
[1766136502475,0.001401,88210.0,88206.0,0.01133709]
[1766136502678,0.001401,88210.0,88207.0,0.01133696]
[1766136502877,0.001401,88210.0,88208.0,0.00568]
[1766136503092,0.00076403,88211.0,88208.0,0.01701684]
[1766136503452,0.00055634,88209.0,88208.0,0.01701684]
[1766136504055,0.00055634,88209.0,88208.0,0.00568]
[1766136504360,0.00055634,88209.0,88207.0,1e-08]
[1766136504562,0.00076403,88211.0,88208.0,0.00568]
[1766136504783,4.03e-06,88211.0,88208.0,0.00568]
[1766136505027,0.00013,88212.0,88206.0,0.23807839]
[1766136505169,0.00010914,88212.0,88209.0,0.01133671]
[1766136505365,0.00010914,88212.0,88211.0,1e-08]
[1766136505570,0.0025,88220.0,88211.0,2e-08]
[1766136505862,0.18386,88220.0,88211.0,1e-08]
[1766136506269,0.0025,88220.0,88212.0,0.11532891]
[1766136506471,0.18136,88227.0,88211.0,0.01133581]
[1766136506670,0.18136,88227.0,88211.0,0.01133645]
[1766136506671,0.21542928,88227.0,88211.0,0.01133645]
[1766136507095,0.21542928,88227.0,88212.0,0.01133632]
[1766136507310,0.03406928,88227.0,88213.0,0.00568]
[1766136507464,0.18136,88224.0,88213.0,0.00568]
[1766136508574,0.0025,88222.0,88213.0,0.00568]
[1766136509619,0.34212,88222.0,88213.0,0.004581]
[1766136509871,0.22670339,88221.0,88205.0,0.0025]
[1766136510039,0.0025,88216.0,88205.0,1e-08]
[1766136510260,0.01383555,88218.0,88205.0,1e-08]
[1766136510261,0.0004636,88206.0,88205.0,1e-08]
[1766136510462,6e-07,88206.0,88205.0,0.00250001]
[1766136510973,6e-07,88206.0,88205.0,0.00203701]
[1766136511782,6e-07,88206.0,88203.0,0.00568]
[1766136512011,0.00036351,88206.0,88203.0,0.01701748]
[1766136512739,0.00036351,88206.0,88203.0,0.00568]
[1766136512944,0.00036351,88206.0,88204.0,0.0025]
[1766136513361,3.51e-06,88206.0,88204.0,0.0025]
[1766136514758,3.51e-06,88206.0,88200.0,0.91170886]
[1766136514759,3.51e-06,88206.0,88200.0,0.900371]
[1766136514947,3.51e-06,88206.0,88201.0,0.00568]
[1766136515141,3.51e-06,88206.0,88200.0,1e-06]
[1766136515691,0.19996351,88206.0,88200.0,0.00568]
[1766136516007,0.19996,88205.0,88200.0,0.00568]
[1766136516984,0.19996,88205.0,88201.0,0.0025]
[1766136517851,0.19996,88203.0,88196.0,0.00568]
[1766136518619,0.32266,88203.0,88196.0,0.00568]
[1766136518817,0.32266,88202.0,88196.0,0.00568]
[1766136519043,0.19996,88201.0,88196.0,0.00568]
[1766136519201,3.51e-06,88206.0,88193.0,0.00568]
[1766136519202,0.32266,88199.0,88193.0,0.00568]
[1766136519403,6.9e-07,88206.0,88199.0,0.001099]
[1766136519824,6.9e-07,88206.0,88200.0,0.00818]
[1766136520813,0.32266,88205.0,88200.0,0.00818]
[1766136521842,0.19996,88204.0,88200.0,0.00818]
[1766136523372,0.19996,88202.0,88187.0,0.04160192]
[1766136523740,0.19996,88202.0,88191.0,0.01701902]